bitfinex/quotes_SOLUSD_20250724
["timestamp","ask_amount","ask_price","bid_price","bid_amount"]
[1753344723715,6.08910534,185.56,185.48,5.39137097]
[1753344723916,5.41539332,185.55,185.49,4.71539332]
[1753344724119,5.38910534,185.56,185.49,4.71539332]
[1753344724120,0.7,185.54,185.49,4.71539332]
[1753344724320,0.7,185.56,185.53,4.71539332]
[1753344724704,3.595615,185.61,185.55,4.71539332]
[1753344724705,0.7,185.6,185.55,4.71539332]
[1753344724896,0.7,185.59,185.55,4.71539332]
[1753344725102,0.7,185.58,185.54,4.71539332]
[1753344725319,0.7,185.58,185.53,4.71539332]
[1753344725624,0.7,185.57,185.51,5.39053717]
[1753344725821,0.7,185.57,185.53,4.71539332]
[1753344726321,0.7,185.57,185.51,5.67053717]
[1753344726526,10.10365961,185.59,185.53,4.71539332]
[1753344726708,10.39450058,185.59,185.51,5.67053717]
[1753344726905,5.67910726,185.59,185.53,4.71539332]
[1753344727103,4.21539332,185.57,185.51,4.71539332]
[1753344727303,4.71539332,185.57,185.52,4.71539332]
[1753344727506,0.7,185.56,185.52,4.71539332]
[1753344727705,0.7,185.56,185.49,0.28]
[1753344728009,0.7,185.55,185.51,4.71539332]
[1753344728414,0.7,185.54,185.5,4.71539332]
[1753344729439,0.7,185.56,185.51,4.71539332]
[1753344729730,5.38851169,185.58,185.51,4.71539332]
[1753344729932,6.08851169,185.58,185.53,4.71539332]
[1753344730306,0.7,185.58,185.53,4.71539332]
[1753344730519,0.7,185.58,185.54,4.71539332]
[1753344730717,6.08856509,185.58,185.54,4.71539332]
[1753344730918,6.08856509,185.58,185.51,0.28]
[1753344731120,9.01247033,185.61,185.56,4.71539332]
[1753344731429,5.41539332,185.61,185.56,4.71539332]
[1753344731726,0.7,185.6,185.54,4.71539332]
[1753344731929,4.71539332,185.59,185.52,0.28]
[1753344732134,0.7,185.58,185.54,4.71539332]
[1753344732313,0.7,185.58,185.52,5.66998777]
[1753344732701,13.4676507,185.63,185.52,5.66998777]
[1753344732929,0.7,185.6,185.56,4.71539332]
[1753344733111,4.71539332,185.61,185.56,4.71539332]
[1753344733328,0.03,185.59,185.56,4.99539332]
[1753344733539,0.03,185.59,185.54,0.28]
[1753344733843,0.03,185.59,185.56,4.71539332]
[1753344734024,0.03,185.59,185.56,0.81890924]
[1753344734226,0.03,185.59,185.58,4.71539332]
[1753344735202,0.03,185.59,185.57,5.66863235]
[1753344735506,0.03,185.59,185.58,4.71539332]
[1753344736313,0.03,185.59,185.58,0.28]
[1753344736512,0.03,185.59,185.56,5.38888256]
[1753344736823,0.03,185.59,185.58,4.71539332]
[1753344737443,0.03,185.59,185.58,4.99539332]
[1753344737810,0.03,185.59,185.58,10.38390501]
[1753344738942,0.03,185.59,185.58,4.71539332]
[1753344739242,0.03,185.59,185.58,4.99539332]
[1753344740124,0.03,185.59,185.58,5.66851169]
[1753344740330,0.03,185.59,185.58,4.71539332]
[1753344740534,0.03,185.59,185.58,4.99539332]
[1753344740737,0.03,185.59,185.58,0.28]
[1753344740943,0.03,185.59,185.58,4.99539332]
[1753344741154,0.03,185.59,185.58,9.71078664]
[1753344742369,0.03,185.59,185.58,10.38390501]
[1753344742532,0.03,185.59,185.58,15.09929833]
[1753344744233,0.78237167,185.7,185.61,26.0]
[1753344744532,1.46237167,185.7,185.62,40.79873505]
[1753344745137,0.78237167,185.7,185.68,4.71539332]
[1753344745338,0.78237167,185.7,185.63,0.28]
[1753344745339,0.78237167,185.7,185.67,4.71539332]
[1753344745535,1.46237167,185.7,185.64,0.538677]
[1753344745860,1.46237167,185.7,185.68,4.71539332]
[1753344746559,0.68,185.69,185.63,0.81870602]
[1753344746863,0.68,185.69,185.62,4.71539332]
[1753344747066,0.68,185.69,185.63,4.71539332]
[1753344747268,0.68,185.69,185.62,0.53873505]
[1753344747485,0.68,185.69,185.64,4.71539332]
[1753344747635,0.68,185.68,185.62,0.81873505]
[1753344747837,4.71539332,185.66,185.6,5.38793103]
[1753344748134,6.16742091,185.7,185.62,5.38730339]
[1753344748135,0.68,185.65,185.62,5.38730339]
[1753344748435,0.68,185.65,185.62,10.10269671]
[1753344748641,4.71539332,185.67,185.62,4.71539332]
[1753344748837,0.68,185.66,185.61,4.71539332]
[1753344749044,0.68,185.65,185.61,4.71539332]
[1753344749271,5.39539332,185.67,185.62,4.71539332]
[1753344749469,0.68,185.66,185.6,46.06660553]
[1753344749652,0.68,185.66,185.61,4.71539332]
[1753344749960,0.68,185.66,185.6,46.06660553]
[1753344750358,0.68,185.66,185.62,4.71539332]
[1753344750663,4.71539332,185.67,185.61,5.38760375]
[1753344750664,0.68,185.65,185.61,5.38760375]
[1753344750850,0.68,185.65,185.62,4.71539332]
[1753344751547,0.68,185.65,185.6,45.52789001]
[1753344751862,0.68,185.68,185.62,4.71539332]
[1753344752168,4.71539332,185.67,185.62,4.71539332]
[1753344752372,0.68,185.68,185.6,45.80789001]
[1753344752373,0.68,185.66,185.6,45.52789001]
[1753344752549,0.68,185.66,185.6,40.14]
[1753344752748,4.71539332,185.63,185.6,40.14]
[1753344752943,0.68,185.62,185.58,4.71539332]
[1753344753148,0.68,185.61,185.58,4.71539332]
[1753344753349,1.5671,185.66,185.59,4.71539332]
[1753344753654,5.39539332,185.63,185.57,5.38872604]
[1753344753856,4.71539332,185.59,185.51,0.28]
[1753344754047,5.38764075,185.61,185.51,45.83048271]
[1753344754048,4.71539332,185.57,185.51,45.83048271]
[1753344754260,5.39539332,185.57,185.52,4.71539332]
[1753344754470,0.68,185.6,185.52,0.28]
[1753344754667,0.68,185.6,185.55,4.71539332]
[1753344754960,0.68,185.62,185.57,4.71539332]
[1753344755269,0.68,185.64,185.6,4.71539332]
[1753344755443,12.34873412,185.66,185.61,4.71539332]
[1753344755646,0.68,185.65,185.58,0.81885116]
[1753344755971,0.68,185.65,185.61,4.71539332]
[1753344756266,6.8852,185.67,185.63,4.71539332]
[1753344756473,0.68,185.66,185.63,4.71539332]
[1753344756761,0.68,185.66,185.6,0.5387931]
[1753344757165,5.39539332,185.66,185.6,0.5387931]
[1753344757365,4.71539332,185.64,185.59,4.71539332]
[1753344757555,0.68,185.63,185.59,5.25421545]
[1753344757756,0.68,185.63,185.59,10.64227555]
[1753344758098,0.68,185.65,185.61,4.71539332]
[1753344758267,0.68,185.64,185.59,5.92688223]
[1753344758444,0.68,185.63,185.59,5.25421545]
[1753344758855,0.68,185.63,185.59,5.92692311]
[1753344759067,0.68,185.63,185.6,4.71539332]
[1753344759269,6.2052,185.67,185.62,4.71539332]
[1753344759576,6.2052,185.67,185.63,4.71539332]
[1753344759772,0.68,185.66,185.61,0.53876407]
[1753344760071,0.68,185.69,185.62,5.38729746]
[1753344760270,4.71539332,185.68,185.61,6.20633578]
[1753344760457,0.68,185.67,185.61,5.92633578]
[1753344760854,0.68,185.68,185.61,6.20633578]
[1753344761370,5.39539332,185.68,185.61,5.92633578]
[1753344761550,5.39539332,185.67,185.62,4.71539332]
[1753344761746,0.68,185.66,185.62,4.71539332]
[1753344762059,0.68,185.66,185.61,5.92633578]
[1753344762263,5.38569863,185.68,185.63,4.71539332]
[1753344762264,5.39539332,185.68,185.63,4.71539332]
[1753344762448,5.39539332,185.68,185.61,6.20633578]
[1753344762649,5.39539332,185.68,185.63,4.71539332]
[1753344763051,0.66,185.67,185.63,4.71539332]
[1753344763354,0.66,185.66,185.61,5.92633578]
[1753344763560,4.71539332,185.64,185.57,5.38856808]
[1753344763877,4.71539332,185.64,185.59,4.71539332]
[1753344763878,5.37539332,185.64,185.59,4.71539332]
[1753344764054,0.66,185.67,185.63,4.71539332]
[1753344764251,4.71539332,185.69,185.64,0.538677]
[1753344764563,0.66,185.69,185.65,4.71539332]
[1753344764970,0.78237167,185.7,185.65,0.28]
[1753344765272,1.44237167,185.7,185.65,4.71539332]
[1753344765455,0.78237167,185.7,185.65,4.71539332]
[1753344765666,0.66,185.69,185.65,4.71539332]
[1753344765965,0.66,185.69,185.65,10.10180603]
[1753344766471,4.66380233,185.69,185.65,5.38641271]
[1753344766658,4.66380233,185.69,185.66,4.71539332]
[1753344766853,4.00380233,185.69,185.65,5.38641271]
[1753344767052,4.00380233,185.69,185.65,5.66641271]
[1753344767254,4.79266875,185.7,185.66,4.71539332]
[1753344767464,0.66,185.69,185.63,5.92571379]
[1753344767667,4.67029708,185.69,185.63,5.92571379]
[1753344767868,0.66,185.69,185.65,4.71539332]
[1753344768052,0.78237167,185.7,185.65,5.38638672]
[1753344768261,10.16818307,185.7,185.65,10.10178004]
[1753344768455,6.15776499,185.7,185.65,10.10178004]
[1753344768652,6.15776499,185.7,185.65,5.38638672]
[1753344768854,0.78237167,185.7,185.65,10.10178004]
[1753344769055,0.78237167,185.7,185.66,4.71539332]
[1753344769368,0.66,185.69,185.66,4.71539332]
[1753344769973,4.7932716,185.7,185.66,10.10157557]
[1753344770182,4.7932716,185.7,185.66,5.38618225]
[1753344770383,4.7932716,185.7,185.65,5.92511032]
[1753344770596,4.7932716,185.7,185.67,4.71539332]
[1753344770894,0.78237167,185.7,185.68,4.71539332]
[1753344771470,0.78237167,185.7,185.67,5.25398329]
[1753344771777,0.78237167,185.7,185.69,4.71539332]
[1753344771957,0.78237167,185.7,185.68,4.71539332]
[1753344772563,0.78237167,185.7,185.67,10.10123983]
[1753344772770,0.78237167,185.7,185.67,4.71539332]
[1753344773160,0.78237167,185.7,185.69,4.71539332]
[1753344773962,0.78237167,185.7,185.68,4.71539332]
[1753344774569,0.78237167,185.7,185.67,10.10105716]
[1753344774882,0.78237167,185.7,185.68,4.71539332]
[1753344775057,0.78237167,185.7,185.69,4.71539332]
[1753344775259,0.78237167,185.7,185.69,4.99539332]
[1753344775455,0.78237167,185.7,185.69,0.28]
[1753344775672,0.78237167,185.7,185.69,4.99539332]
[1753344775981,0.78237167,185.7,185.69,0.28]
[1753344776192,0.78237167,185.7,185.69,10.10071293]
[1753344778095,0.78237167,185.7,185.68,5.38560965]
[1753344778391,0.78237167,185.7,185.69,4.71539332]
[1753344779166,1.44237167,185.7,185.68,5.38560965]
[1753344779570,5.37539332,185.69,185.64,5.38677009]
[1753344779786,0.78237167,185.7,185.61,40.26]
[1753344779787,5.37539332,185.68,185.61,40.26]
[1753344779995,4.71539332,185.68,185.63,4.71539332]
[1753344780300,0.66,185.68,185.64,4.71539332]
[1753344780638,0.66,185.67,185.63,4.71539332]
[1753344780780,4.71539332,185.65,185.59,0.53882213]
[1753344780967,0.66,185.66,185.6,4.71539332]
[1753344781171,0.66,185.66,185.61,4.71539332]
[1753344781392,0.66,185.66,185.62,4.71539332]
[1753344781910,5.37539332,185.65,185.57,5.38875954]
[1753344782073,4.71539332,185.63,185.55,0.06]
[1753344782272,5.38724014,185.63,185.57,4.71539332]
[1753344782495,4.71539332,185.6,185.55,4.77539332]
[1753344782682,5.38724014,185.63,185.56,4.71539332]
[1753344782683,0.66,185.59,185.56,4.71539332]
[1753344782995,0.66,185.62,185.58,4.71539332]
[1753344783170,0.66,185.62,185.6,4.71539332]
[1753344783375,0.66,185.61,185.59,4.71539332]
[1753344783773,8.0687,185.64,185.6,4.71539332]
[1753344783972,0.66,185.63,185.59,4.71539332]
[1753344784297,0.66,185.62,185.58,5.38845759]
[1753344784501,13.45548779,185.64,185.57,5.38873813]
[1753344784802,8.7287,185.64,185.6,4.71539332]
[1753344784991,8.0687,185.64,185.59,4.71539332]
[1753344785295,0.66,185.63,185.58,0.53885116]
[1753344785495,8.0687,185.64,185.61,4.71539332]
[1753344785696,0.66,185.64,185.61,4.71539332]
[1753344785899,4.71539332,185.66,185.61,4.71539332]
[1753344786104,5.38617893,185.67,185.61,4.71539332]
[1753344786304,0.66,185.65,185.61,10.10295787]
[1753344786686,0.66,185.64,185.58,0.81885116]
[1753344786875,0.66,185.64,185.6,4.71539332]
[1753344787081,10.76160222,185.66,185.58,0.81885116]
[1753344787293,10.76160222,185.66,185.61,4.71539332]
[1753344787501,0.66,185.65,185.61,4.71539332]
[1753344787983,0.66,185.64,185.6,5.3878142]
[1753344788382,0.66,185.66,185.62,4.71539332]
[1753344788578,13.40179332,185.68,185.62,4.71539332]
[1753344788811,13.40179332,185.68,185.63,4.71539332]
[1753344789111,0.66,185.67,185.61,0.53876407]
[1753344789281,5.37539332,185.67,185.62,4.71539332]
[1753344789482,0.66,185.66,185.59,0.53882213]
[1753344789708,4.71539332,185.64,185.59,5.38812002]
[1753344789910,5.37539332,185.63,185.58,4.71539332]
[1753344790092,0.66,185.62,185.59,4.71539332]
[1753344790718,4.71539332,185.64,185.57,5.92763088]
[1753344790897,5.38599848,185.67,185.58,4.71539332]
[1753344791094,0.66,185.64,185.57,5.38875068]
[1753344791411,0.66,185.64,185.6,4.71539332]
[1753344791703,0.66,185.63,185.59,5.38806369]
[1753344791907,0.66,185.67,185.62,4.71539332]
[1753344792205,1.44237167,185.7,185.65,4.71539332]
[1753344792405,1.44237167,185.7,185.66,4.71539332]
[1753344793036,0.78237167,185.7,185.67,4.71539332]
[1753344793313,0.78237167,185.7,185.67,0.28]
[1753344793512,0.78237167,185.7,185.68,5.38560965]
[1753344793712,0.78237167,185.7,185.68,10.10100297]
[1753344793881,0.78237167,185.7,185.68,5.38560965]
[1753344794089,0.78237167,185.7,185.67,4.71539332]
[1753344794909,0.78237167,185.7,185.66,5.3861898]
[1753344795084,1.49237167,185.7,185.66,5.3861898]
[1753344795408,0.71,185.69,185.66,4.71539332]
[1753344795647,0.71,185.69,185.65,5.38641104]
[1753344796114,0.71,185.69,185.66,4.71539332]
[1753344796321,0.71,185.69,185.68,4.71539332]
[1753344796499,0.78237167,185.7,185.68,4.71539332]
[1753344796803,0.71,185.69,185.66,4.71539332]
[1753344796983,0.78237167,185.7,185.67,4.71539332]
[1753344797184,4.71539332,185.68,185.59,0.28]
[1753344797384,0.71,185.69,185.64,4.71539332]
[1753344797606,0.71,185.68,185.6,59.59775861]
[1753344797904,0.71,185.68,185.63,4.71539332]
[1753344798107,0.71,185.68,185.64,4.71539332]
[1753344798405,0.71,185.67,185.63,4.71539332]
[1753344798599,0.71,185.66,185.6,46.12793103]
[1753344798799,0.71,185.66,185.6,46.66672413]
[1753344798993,0.71,185.66,185.64,4.71539332]
[1753344799316,0.71,185.66,185.6,41.2787931]
[1753344799317,0.71,185.68,185.63,4.71539332]
[1753344799684,0.71,185.68,185.64,4.71539332]
[1753344800487,1.49237167,185.7,185.65,4.71539332]
[1753344800911,0.71,185.69,185.65,4.71539332]
[1753344801112,0.71,185.69,185.65,10.10186205]
[1753344801488,10.88281838,185.7,185.65,4.71539332]
[1753344801791,0.71,185.68,185.64,5.38668564]
[1753344802114,0.71,185.68,185.65,4.71539332]
[1753344802303,0.71,185.68,185.62,0.81873505]
[1753344802611,0.71,185.67,185.63,4.71539332]
[1753344803015,0.78237167,185.7,185.66,4.71539332]
[1753344803190,0.03,185.69,185.67,4.71539332]
[1753344803391,0.03,185.69,185.68,5.25395428]
[1753344803588,0.03,185.69,185.68,5.53395428]
[1753344804212,0.03,185.69,185.68,0.81856096]
[1753344804623,0.03,185.69,185.68,5.53395428]
[1753344805117,0.03,185.69,185.68,6.20417061]
[1753344805320,0.03,185.69,185.68,10.91956393]
[1753344806609,0.03,185.69,185.68,10.63956393]
[1753344806798,0.03,185.69,185.68,51.13956393]
[1753344807201,0.03,185.69,185.68,51.41956393]
[1753344808025,0.03,185.69,185.68,46.70417061]
[1753344808410,0.03,185.69,185.68,51.41956393]
[1753344808714,0.03,185.69,185.68,51.13956393]
[1753344809307,0.03,185.69,185.68,51.41956393]
[1753344809705,0.03,185.69,185.68,51.37956393]
[1753344810025,0.78237167,185.7,185.68,51.37956393]
[1753344810320,0.78237167,185.7,185.69,4.99539332]
[1753344810527,0.71,185.81,185.7,16.78468397]
[1753344810816,0.71,185.81,185.78,4.71539332]
[1753344811022,0.71,185.81,185.75,40.62]
[1753344811210,0.71,185.81,185.78,4.71539332]
[1753344811414,0.71,185.8,185.77,10.09833067]
[1753344811619,0.71,185.8,185.77,4.71539332]
[1753344811801,7.587,185.82,185.78,4.71539332]
[1753344812020,0.71,185.79,185.78,4.71539332]
[1753344812329,0.71,185.79,185.76,5.38324266]
[1753344812498,0.71,185.82,185.78,4.71539332]
[1753344812697,0.71,185.81,185.79,4.71539332]
[1753344813025,0.71,185.81,185.8,4.71539332]
[1753344813527,0.71,185.83,185.8,4.71539332]
[1753344813724,0.71,185.82,185.77,0.53830004]
[1753344814222,0.71,185.81,185.8,4.71539332]
[1753344814731,0.71,185.81,185.78,5.38271073]
[1753344814903,0.71,185.85,185.8,4.71539332]
[1753344815240,0.71,185.87,185.84,4.71539332]
[1753344815541,0.71,185.87,185.85,4.71539332]
[1753344815696,0.71,185.87,185.81,0.53818416]
[1753344815898,6.1985,185.88,185.85,4.71539332]
[1753344816121,4.71539332,185.86,185.81,4.71539332]
[1753344816327,6.1985,185.88,185.79,0.5382421]
[1753344816328,0.71,185.85,185.79,0.5382421]
[1753344816716,0.71,185.85,185.82,4.71539332]
[1753344816914,0.71,185.84,185.82,4.71539332]
[1753344817121,0.71,185.84,185.8,5.38213132]
[1753344817335,0.71,185.84,185.82,4.71539332]
[1753344817627,0.71,185.86,185.83,4.71539332]
[1753344817838,0.71,185.85,185.83,4.71539332]
[1753344818914,0.71,185.84,185.83,4.71539332]
[1753344819422,0.71,185.87,185.81,5.38171321]
[1753344819643,0.71,185.87,185.83,4.71539332]
[1753344820007,0.71,185.86,185.83,4.71539332]
[1753344820219,2.2306,185.9,185.85,4.71539332]
[1753344820426,0.71,185.89,185.87,4.71539332]
[1753344820939,0.71,185.89,185.81,19.65450153]
[1753344820940,0.71,185.89,185.85,4.71539332]
[1753344821229,1.5206,185.9,185.87,4.71539332]
[1753344821413,6.007,185.92,185.87,4.71539332]
[1753344821611,0.71,185.9,185.87,4.71539332]
[1753344821814,11.3857261,185.92,185.87,4.71539332]
[1753344822025,0.71,185.91,185.89,4.71539332]
[1753344822206,6.007,185.92,185.84,0.81809728]
[1753344822408,6.717,185.92,185.84,0.53809728]
[1753344822630,0.71,185.92,185.88,4.71539332]
[1753344822827,0.71,185.91,185.85,5.38068334]
[1753344823035,0.72,185.93,185.9,4.71539332]
[1753344823240,6.09805266,185.95,185.9,4.71539332]
[1753344823407,0.72,185.94,185.9,4.71539332]
[1753344823603,0.72,185.94,185.85,5.38068334]
[1753344823809,0.72,185.94,185.83,5.38126244]
[1753344824003,0.72,185.94,185.87,4.71539332]
[1753344824237,4.71539332,185.93,185.87,4.71539332]
[1753344824419,5.43539332,185.92,185.86,4.71539332]
[1753344824614,4.71539332,185.89,185.8,6.93144388]
[1753344824920,4.71539332,185.87,185.82,4.71539332]
[1753344825225,0.72,185.86,185.82,4.71539332]
[1753344825434,0.72,185.85,185.8,5.38204388]
[1753344825726,40.4,185.91,185.8,5.38204388]
[1753344825727,11.5673682,185.93,185.8,18.83737219]
[1753344825928,5.43539332,185.88,185.8,5.38204388]
[1753344826130,4.71539332,185.85,185.8,4.71539332]
[1753344826316,5.43539332,185.84,185.78,4.71539332]
[1753344826521,0.72,185.83,185.77,5.38296875]
[1753344826825,0.72,185.83,185.78,10.09795696]
[1753344827137,4.71539332,185.81,185.76,4.71539332]
[1753344827427,4.71539332,185.81,185.75,4.71539332]
[1753344827631,0.72,185.86,185.8,4.71539332]
[1753344827933,0.72,185.86,185.82,4.71539332]
[1753344828618,0.72,185.86,185.84,4.71539332]
[1753344829020,0.03,185.85,185.84,4.71539332]
[1753344829332,0.03,185.85,185.84,10.09636619]
[1753344829533,0.03,185.85,185.8,0.53821313]
[1753344829534,0.03,185.85,185.81,5.38184166]
[1753344829734,0.03,185.85,185.83,4.71539332]
[1753344830040,5.43539332,185.84,185.77,5.38300048]
[1753344830221,0.72,185.83,185.77,5.38300048]
[1753344830416,5.43539332,185.83,185.78,4.71539332]
[1753344830616,0.72,185.82,185.77,5.38300048]
[1753344830933,0.72,185.81,185.78,10.09790387]
[1753344831439,0.72,185.81,185.79,4.71539332]
[1753344831736,0.72,185.83,185.79,4.71539332]
[1753344832113,0.03,185.85,185.82,4.71539332]
[1753344832336,0.03,185.85,185.83,4.71539332]
[1753344832531,0.03,185.85,185.82,4.71539332]
[1753344832914,0.75,185.85,185.83,5.38126244]
[1753344833535,0.75,185.85,185.82,4.71539332]
[1753344834040,0.03,185.85,185.82,4.71539332]
[1753344834227,0.03,185.85,185.79,5.38242101]
[1753344834430,0.72,185.84,185.79,10.09781433]
[1753344834828,0.72,185.84,185.81,4.71539332]
[1753344835233,0.03,185.85,185.81,10.09707235]
[1753344835426,0.03,185.85,185.82,0.28]
[1753344835732,0.03,185.85,185.81,5.38167903]
[1753344835733,0.72,185.84,185.81,5.38167903]
[1753344835941,0.03,185.85,185.83,4.71539332]
[1753344836240,0.03,185.85,185.84,4.71539332]
[1753344836535,0.03,185.85,185.83,0.28]
[1753344836738,0.03,185.85,185.84,4.71539332]
[1753344837216,0.03,185.85,185.84,10.09636619]
[1753344837938,0.03,185.85,185.84,10.91446347]
[1753344838436,0.03,185.85,185.84,6.19907015]
[1753344838743,0.03,185.85,185.84,10.63446347]
[1753344838916,0.03,185.85,185.84,10.91446347]
[1753344839644,8.452,185.93,185.84,24.36689566]
[1753344839935,0.72,185.92,185.88,4.71539332]
[1753344840233,7.732,185.93,185.88,4.71539332]
[1753344840234,0.72,185.91,185.88,4.71539332]
[1753344840442,0.72,185.92,185.89,4.71539332]
[1753344840619,0.72,185.91,185.89,4.71539332]
[1753344840818,0.72,185.91,185.88,4.71539332]
[1753344841342,0.72,185.91,185.89,5.37952552]
[1753344841934,0.72,185.93,185.89,5.37952552]
[1753344842139,0.72,185.91,185.88,4.71539332]
[1753344842342,4.71539332,185.94,185.88,4.71539332]
[1753344842518,0.72,185.91,185.88,4.71539332]
[1753344842918,0.72,185.9,185.87,10.09549769]
[1753344843224,0.72,185.89,185.87,10.09549769]
[1753344843537,0.72,185.89,185.87,4.71539332]
[1753344843838,0.72,185.92,185.88,4.71539332]
[1753344844141,0.72,185.92,185.89,4.71539332]
[1753344844338,0.72,185.92,185.9,4.71539332]
[1753344844733,0.72,185.94,185.91,4.71539332]
[1753344845038,0.72,185.94,185.9,4.71539332]
[1753344845430,0.72,185.93,185.89,4.71539332]
[1753344845939,0.72,185.92,185.89,4.71539332]
[1753344846353,0.72,185.91,185.89,4.71539332]
[1753344846535,0.72,185.91,185.86,18.83137845]
[1753344846734,0.72,185.94,185.9,4.71539332]
[1753344846938,0.72,185.93,185.9,4.71539332]
[1753344847449,0.72,185.95,185.9,4.71539332]
[1753344847638,0.72,185.93,185.91,10.09434012]
[1753344847943,0.72,185.96,185.91,10.09434012]
[1753344848166,0.72,185.95,185.92,4.71539332]
[1753344848452,4.71539332,185.97,185.92,4.71539332]
[1753344848453,0.72,185.94,185.92,4.71539332]
[1753344848839,0.72,185.94,185.91,5.3789468]
[1753344849034,0.72,185.94,185.92,4.71539332]
[1753344849731,0.72,185.94,185.91,10.09434012]
[1753344850054,0.72,185.93,185.91,10.09434012]
[1753344850434,0.72,185.93,185.91,5.3789468]
[1753344850749,0.72,185.92,185.9,4.71539332]
[1753344850955,0.72,185.92,185.87,5.38010437]
[1753344851122,0.72,185.91,185.86,93.58030383]
[1753344851326,5.43539332,185.9,185.84,4.71539332]
[1753344851538,5.43539332,185.9,185.81,172.46]
[1753344851539,4.71539332,185.88,185.85,0.06]
[1753344851751,4.71539332,185.86,185.85,0.06]
[1753344851962,5.37998497,185.88,185.85,0.06]
[1753344852461,5.29348462,185.86,185.85,0.06]
[1753344852762,0.5780913,185.86,185.85,0.06]
[1753344852964,5.29348462,185.86,185.85,0.06]
[1753344853347,8.1872,185.9,185.85,0.06]
[1753344853656,18.28192019,185.9,185.85,4.77539332]
[1753344853974,8.1872,185.9,185.86,4.71539332]
[1753344854177,44.63539332,185.93,185.88,4.71539332]
[1753344854458,0.65,185.92,185.88,4.71539332]
[1753344854632,0.65,185.92,185.85,18.89237556]
[1753344854838,5.36539332,185.92,185.87,4.71539332]
[1753344855062,0.65,185.91,185.87,4.71539332]
[1753344855256,4.71539332,185.92,185.87,7.64496417]
[1753344855257,0.65,185.9,185.87,7.64496417]
[1753344855459,7.64496417,185.92,185.85,5.4406672]
[1753344855636,11.82034234,185.94,185.87,7.64496417]
[1753344855838,0.65,185.92,185.87,5.37982751]
[1753344856050,0.65,185.91,185.88,7.64496417]
[1753344856546,0.65,185.91,185.89,7.64496417]
[1753344856764,6.4422,185.94,185.9,7.64496417]
[1753344856943,0.65,185.93,185.89,7.64496417]
[1753344857144,0.65,185.92,185.89,7.64496417]
[1753344857740,0.65,185.92,185.89,13.02444988]
[1753344858466,0.65,185.92,185.89,7.64496417]
[1753344858641,0.65,185.92,185.89,13.02446015]
[1753344858843,0.65,185.92,185.89,7.64496417]
[1753344859368,0.65,185.91,185.89,7.64496417]
[1753344860361,0.65,185.93,185.89,7.64496417]
[1753344860568,0.65,185.92,185.89,7.64496417]
[1753344861371,0.65,185.91,185.86,5.38039384]
[1753344861556,11.82028688,185.94,185.86,5.38039384]
[1753344861557,7.64496417,185.93,185.88,7.64496417]
[1753344861752,0.65,185.9,185.88,7.64496417]
[1753344862068,0.65,185.92,185.88,13.02460631]
[1753344862367,0.65,185.92,185.88,5.37964214]
[1753344862667,0.65,185.91,185.88,13.02460631]
[1753344862841,0.65,185.91,185.88,5.37964214]
[1753344863191,0.65,185.91,185.88,13.02460631]
[1753344863540,0.65,185.9,185.85,0.06]
[1753344863735,11.820313,185.94,185.85,0.06]
[1753344863736,0.65,185.89,185.85,0.06]
[1753344863960,0.65,185.88,185.85,0.06]
[1753344864273,7.64496417,185.87,185.85,0.06]
[1753344864569,0.65,185.86,185.85,0.06]
[1753344865152,8.29496417,185.86,185.85,0.06]
[1753344865394,0.65,185.86,185.85,0.06]
[1753344866461,53.28738554,185.91,185.85,0.06]
[1753344866462,39.84,185.91,185.85,0.06]
[1753344866647,0.65,185.86,185.85,0.06]
[1753344867857,0.65,185.88,185.85,0.06]
[1753344868055,0.65,185.88,185.86,7.64496417]
[1753344868452,13.02369757,185.92,185.87,7.64496417]
[1753344868666,0.65,185.91,185.87,7.64496417]
[1753344868872,0.65,185.91,185.85,0.06]
[1753344869052,0.65,185.91,185.89,7.64496417]
[1753344869255,0.65,185.93,185.85,0.48]